[Event "Titled Tuesday Blitz May 25 2021"]
[White "Triapishko, Alexandr"]
[Black "Devaev, Alexander"]
[WhiteFideId "14122286"]
[BlackFideId "4169395"]
[WhiteElo "2490"]
[BlackElo "2185"]
[Result "1-0"]
[Round "05"]
[TimeControl "180+1"]
[Date "2021.05.25"]
[WhiteClock "0:00:03"]
[BlackClock "0:00:04"]

1. c4 {[%clk 0:03:00]}  c5 {[%clk 0:02:59]} 2. Nc3 {[%clk 0:02:59]}  e6 {[%clk 0:03:00]} 3. Nf3 {[%clk 0:02:58]}  Nf6 {[%clk 0:03:00]} 4. g3 {[%clk 0:02:55]}  Be7 {[%clk 0:03:00]} 5. Bg2 {[%clk 0:02:55]}  O-O {[%clk 0:03:01]} 6. O-O {[%clk 0:02:55]}  Nc6 {[%clk 0:03:01]} 7. d4 {[%clk 0:02:54]}  cxd4 {[%clk 0:03:01]} 8. Nxd4 {[%clk 0:02:55]}  Ne5 {[%clk 0:03:02]} 9. b3 {[%clk 0:02:53]}  d6 {[%clk 0:03:02]} 10. Bb2 {[%clk 0:02:53]}  a6 {[%clk 0:03:03]} 11. Rc1 {[%clk 0:02:53]}  Qc7 {[%clk 0:03:03]} 12. h3 {[%clk 0:02:46]}  Rb8 {[%clk 0:03:03]} 13. f4 {[%clk 0:02:46]}  Ng6 {[%clk 0:03:04]} 14. e4 {[%clk 0:02:45]}  Re8 {[%clk 0:03:03]} 15. g4 {[%clk 0:02:35]}  h6 {[%clk 0:03:03]} 16. Qd2 {[%clk 0:02:11]}  Bf8 {[%clk 0:02:57]} 17. g5 {[%clk 0:01:59]}  hxg5 {[%clk 0:02:56]} 18. fxg5 {[%clk 0:01:59]}  Nd7 {[%clk 0:02:56]} 19. Qf2 {[%clk 0:01:42]}  Nde5 {[%clk 0:02:39]} 20. Qg3 {[%clk 0:01:40]}  b5 {[%clk 0:02:14]} 21. cxb5 {[%clk 0:01:34]}  Qa7 {[%clk 0:02:15]} 22. Rcd1 {[%clk 0:01:27]}  axb5 {[%clk 0:02:14]} 23. Kh1 {[%clk 0:01:08]}  b4 {[%clk 0:02:11]} 24. Nce2 {[%clk 0:00:44]}  d5 {[%clk 0:01:27]} 25. h4 {[%clk 0:00:38]}  Bd6 {[%clk 0:01:23]} 26. Nc6 {[%clk 0:00:18]}  Nxc6 {[%clk 0:01:19]} 27. Qxd6 {[%clk 0:00:17]}  Qd7 {[%clk 0:00:34]} 28. Qxd7 {[%clk 0:00:15]}  Bxd7 {[%clk 0:00:35]} 29. h5 {[%clk 0:00:15]}  Nh4 {[%clk 0:00:33]} 30. Bh3 {[%clk 0:00:10]}  Ne7 {[%clk 0:00:26]} 31. Rf4 {[%clk 0:00:07]}  Bc6 {[%clk 0:00:16]} 32. Rxh4 {[%clk 0:00:07]}  dxe4 {[%clk 0:00:16]} 33. h6 {[%clk 0:00:06]}  Ng6 {[%clk 0:00:16]} 34. Rh5 {[%clk 0:00:03]}  gxh6 {[%clk 0:00:15]} 35. Rxh6 {[%clk 0:00:03]}  Rbd8 {[%clk 0:00:11]} 36. Rxd8 {[%clk 0:00:03]}  Rxd8 {[%clk 0:00:11]} 37. Bf6 {[%clk 0:00:03]}  Rd2 {[%clk 0:00:11]} 38. Nf4 {[%clk 0:00:02]}  e3+ {[%clk 0:00:12]} 39. Kg1 {[%clk 0:00:03]}  e2 {[%clk 0:00:05]} 40. Nxe2 {[%clk 0:00:02]}  Rxe2 {[%clk 0:00:05]} 41. Bf1 {[%clk 0:00:03]}  Re4 {[%clk 0:00:03]} 42. Bd3 {[%clk 0:00:03]}  Rg4+ {[%clk 0:00:04]} 43. Kf2 {[%clk 0:00:02]}  Be4 {[%clk 0:00:03]} 44. Bxe4 {[%clk 0:00:02]}  Rxe4 {[%clk 0:00:03]} 45. Kf3 {[%clk 0:00:03]}  Re1 {[%clk 0:00:03]} 46. Kf2 {[%clk 0:00:03]}  Ra1 {[%clk 0:00:03]} 47. Ke3 {[%clk 0:00:03]}  Rxa2 {[%clk 0:00:04]} 48. Kd4 {[%clk 0:00:04]}  Ra3 {[%clk 0:00:04]} 49. Kc4 {[%clk 0:00:04]}  Ra1 {[%clk 0:00:04]} 50. Rh3 {[%clk 0:00:04]}  Rc1+ {[%clk 0:00:05]} 51. Kxb4 {[%clk 0:00:04]}  e5 {[%clk 0:00:05]} 52. Kb5 {[%clk 0:00:03]}  Rd1 {[%clk 0:00:06]} 53. b4 {[%clk 0:00:03]}  e4 {[%clk 0:00:05]} 54. Kc4 {[%clk 0:00:03]}  Kf8 {[%clk 0:00:05]} 55. b5 {[%clk 0:00:03]}  Ke8 {[%clk 0:00:05]} 56. Re3 {[%clk 0:00:03]}  Kd7 {[%clk 0:00:04]} 57. Rxe4 {[%clk 0:00:03]}  Rc1+ {[%clk 0:00:05]} 58. Kd5 {[%clk 0:00:03]}  Rb1 {[%clk 0:00:05]} 59. Kc5 {[%clk 0:00:03]}  Rc1+ {[%clk 0:00:04]} 60. Kb6 {[%clk 0:00:04]}  Kd6 {[%clk 0:00:03]} 61. Rd4+ {[%clk 0:00:04]}  Ke6 {[%clk 0:00:03]} 62. Kb7 {[%clk 0:00:05]}  Nf8 {[%clk 0:00:04]} 63. b6 {[%clk 0:00:04]}  Nd7 {[%clk 0:00:04]} 64. Re4+ {[%clk 0:00:05]}  Kd5 {[%clk 0:00:04]} 65. Rd4+ {[%clk 0:00:04]}  Ke6 {[%clk 0:00:04]} 66. Bd8 {[%clk 0:00:05]}  Nc5+ {[%clk 0:00:04]} 67. Kb8 {[%clk 0:00:03]}  Na6+ {[%clk 0:00:04]} 68. Ka7 {[%clk 0:00:03]}  Nc5 {[%clk 0:00:05]} 69. Bc7 {[%clk 0:00:02]}  Ra1+ {[%clk 0:00:05]} 70. Kb8 {[%clk 0:00:02]}  Nd7+ {[%clk 0:00:05]} 71. Kc8 {[%clk 0:00:01]}  Rc1 {[%clk 0:00:04]} 72. Rd6+ {[%clk 0:00:01]}  Ke7 {[%clk 0:00:04]} 73. Rxd7+ {[%clk 0:00:02]}  Ke6 {[%clk 0:00:03]} 74. b7 {[%clk 0:00:03]}  Ra1 {[%clk 0:00:03]} 75. b8=Q {[%clk 0:00:03]}  Ra8 {[%clk 0:00:04]} 76. Qxa8 {[%clk 0:00:03]}  f5 {[%clk 0:00:04]} 77. Qd5# {[%clk 0:00:03]} 1-0


[Site "https://www.chess.com"]

[Event "Titled Tuesday Blitz May 25 2021"]
[White "Zhigalko, Sergei"]
[Black "Zarubitski, Viachaslau"]
[WhiteFideId "13502956"]
[BlackFideId "13509373"]
[WhiteElo "2662"]
[BlackElo "2363"]
[Result "1-0"]
[Round "05"]
[TimeControl "180+1"]
[Date "2021.05.25"]
[WhiteClock "0:00:05"]
[BlackClock "0:00:03"]

1. e4 {[%clk 0:03:00]}  e5 {[%clk 0:02:59]} 2. Nf3 {[%clk 0:02:59]}  Nf6 {[%clk 0:03:00]} 3. d4 {[%clk 0:02:59]}  Nxe4 {[%clk 0:02:59]} 4. Bd3 {[%clk 0:02:59]}  Nc6 {[%clk 0:02:59]} 5. d5 {[%clk 0:02:51]}  Nf6 {[%clk 0:02:58]} 6. dxc6 {[%clk 0:02:46]}  e4 {[%clk 0:02:58]} 7. cxb7 {[%clk 0:02:44]}  Bxb7 {[%clk 0:02:56]} 8. Be2 {[%clk 0:02:44]}  exf3 {[%clk 0:02:51]} 9. Bxf3 {[%clk 0:02:45]}  Bxf3 {[%clk 0:02:40]} 10. Qxf3 {[%clk 0:02:45]}  d5 {[%clk 0:02:40]} 11. O-O {[%clk 0:02:44]}  Be7 {[%clk 0:02:40]} 12. Rd1 {[%clk 0:02:36]}  O-O {[%clk 0:02:10]} 13. c4 {[%clk 0:02:36]}  d4 {[%clk 0:02:02]} 14. Bg5 {[%clk 0:02:30]}  a5 {[%clk 0:01:55]} 15. Nc3 {[%clk 0:02:24]}  c6 {[%clk 0:00:56]} 16. Qxc6 {[%clk 0:01:52]}  Rc8 {[%clk 0:00:49]} 17. Qa6 {[%clk 0:01:47]}  Ra8 {[%clk 0:00:28]} 18. Qc6 {[%clk 0:01:45]}  Rc8 {[%clk 0:00:28]} 19. Qa4 {[%clk 0:01:14]}  Qc7 {[%clk 0:00:19]} 20. Rxd4 {[%clk 0:01:02]}  Qe5 {[%clk 0:00:11]} 21. Bxf6 {[%clk 0:00:35]}  Bxf6 {[%clk 0:00:11]} 22. Rd2 {[%clk 0:00:20]}  Qf4 {[%clk 0:00:10]} 23. Rad1 {[%clk 0:00:15]}  Bxc3 {[%clk 0:00:09]} 24. bxc3 {[%clk 0:00:15]}  Qxc4 {[%clk 0:00:09]} 25. Qxa5 {[%clk 0:00:13]}  Qxc3 {[%clk 0:00:10]} 26. Qxc3 {[%clk 0:00:07]}  Rxc3 {[%clk 0:00:11]} 27. g3 {[%clk 0:00:08]}  g6 {[%clk 0:00:09]} 28. Rb1 {[%clk 0:00:07]}  Ra8 {[%clk 0:00:09]} 29. Rb7 {[%clk 0:00:06]}  Rc6 {[%clk 0:00:08]} 30. h4 {[%clk 0:00:05]}  h5 {[%clk 0:00:08]} 31. Kg2 {[%clk 0:00:05]}  Rca6 {[%clk 0:00:08]} 32. Rbb2 {[%clk 0:00:06]}  Rf6 {[%clk 0:00:08]} 33. Rdc2 {[%clk 0:00:06]}  Kg7 {[%clk 0:00:08]} 34. Rb4 {[%clk 0:00:05]}  Rfa6 {[%clk 0:00:08]} 35. Rbb2 {[%clk 0:00:06]}  R8a7 {[%clk 0:00:09]} 36. Kf1 {[%clk 0:00:06]}  Ra3 {[%clk 0:00:10]} 37. Ke1 {[%clk 0:00:07]}  Re7+ {[%clk 0:00:10]} 38. Kd1 {[%clk 0:00:06]}  Rd7+ {[%clk 0:00:10]} 39. Rd2 {[%clk 0:00:06]}  Re7 {[%clk 0:00:10]} 40. Rb3 {[%clk 0:00:06]}  Ra4 {[%clk 0:00:09]} 41. a3 {[%clk 0:00:06]}  Rea7 {[%clk 0:00:09]} 42. Rdd3 {[%clk 0:00:06]}  Rc7 {[%clk 0:00:09]} 43. Rb4 {[%clk 0:00:05]}  Ra5 {[%clk 0:00:09]} 44. Kd2 {[%clk 0:00:05]}  Rac5 {[%clk 0:00:09]} 45. Rb2 {[%clk 0:00:04]}  Ra5 {[%clk 0:00:10]} 46. Ra2 {[%clk 0:00:04]}  Ra4 {[%clk 0:00:10]} 47. Rb3 {[%clk 0:00:04]}  Rd4+ {[%clk 0:00:09]} 48. Ke3 {[%clk 0:00:02]}  Ra4 {[%clk 0:00:09]} 49. Ke2 {[%clk 0:00:02]}  Re4+ {[%clk 0:00:08]} 50. Kf1 {[%clk 0:00:02]}  Ra4 {[%clk 0:00:08]} 51. Rb4 {[%clk 0:00:03]}  Ra5 {[%clk 0:00:07]} 52. a4 {[%clk 0:00:03]}  Rca7 {[%clk 0:00:07]} 53. Ke2 {[%clk 0:00:04]}  Kf6 {[%clk 0:00:07]} 54. Kd3 {[%clk 0:00:04]}  R7a6 {[%clk 0:00:06]} 55. Kc4 {[%clk 0:00:05]}  Ke6 {[%clk 0:00:06]} 56. Kb3 {[%clk 0:00:05]}  Kd5 {[%clk 0:00:06]} 57. Rd2+ {[%clk 0:00:03]}  Kc6 {[%clk 0:00:02]} 58. Rdd4 {[%clk 0:00:03]}  Rf5 {[%clk 0:00:02]} 59. Rf4 {[%clk 0:00:03]}  Raa5 {[%clk 0:00:02]} 60. Rxf5 {[%clk 0:00:03]}  Rxf5 {[%clk 0:00:03]} 61. Rf4 {[%clk 0:00:03]}  Rd5 {[%clk 0:00:02]} 62. Rf6+ {[%clk 0:00:03]}  Kc5 {[%clk 0:00:02]} 63. Rxf7 {[%clk 0:00:04]}  Rd3+ {[%clk 0:00:02]} 64. Kb2 {[%clk 0:00:04]}  Kb4 {[%clk 0:00:03]} 65. Rf4+ {[%clk 0:00:04]}  Ka5 {[%clk 0:00:03]} 66. Kc2 {[%clk 0:00:03]}  Ra3 {[%clk 0:00:03]} 67. Kd2 {[%clk 0:00:04]}  Ra2+ {[%clk 0:00:03]} 68. Ke3 {[%clk 0:00:04]}  Ra3+ {[%clk 0:00:04]} 69. Ke2 {[%clk 0:00:04]}  Ra2+ {[%clk 0:00:04]} 70. Kf3 {[%clk 0:00:05]}  Ra3+ {[%clk 0:00:05]} 71. Kg2 {[%clk 0:00:05]}  Rc3 {[%clk 0:00:03]} 72. Rf6 {[%clk 0:00:05]} 1-0


[Site "https://www.chess.com"]

[Event "Titled Tuesday Blitz May 25 2021"]
[White "Zierk, Steven"]
[Black "Xiong, Jeffery"]
[WhiteFideId "2034255"]
[BlackFideId "2047640"]
[WhiteElo "2502"]
[BlackElo "2724"]
[Result "1-0"]
[Round "05"]
[TimeControl "180+1"]
[Date "2021.05.25"]
[WhiteClock "0:00:04"]
[BlackClock "0:00:04"]

1. e4 {[%clk 0:03:00]}  e6 {[%clk 0:03:00]} 2. d4 {[%clk 0:03:00]}  d5 {[%clk 0:03:01]} 3. Nc3 {[%clk 0:03:00]}  Bb4 {[%clk 0:03:01]} 4. Ne2 {[%clk 0:03:00]}  Nc6 {[%clk 0:02:59]} 5. a3 {[%clk 0:02:59]}  Ba5 {[%clk 0:03:00]} 6. exd5 {[%clk 0:02:54]}  exd5 {[%clk 0:02:58]} 7. Ng3 {[%clk 0:02:50]}  Nge7 {[%clk 0:02:55]} 8. Bf4 {[%clk 0:02:40]}  O-O {[%clk 0:02:46]} 9. Qd2 {[%clk 0:02:40]}  Bb6 {[%clk 0:02:34]} 10. Nce2 {[%clk 0:02:24]}  Ng6 {[%clk 0:02:22]} 11. Be3 {[%clk 0:02:23]}  Na5 {[%clk 0:02:08]} 12. b3 {[%clk 0:02:15]}  Qh4 {[%clk 0:02:07]} 13. Ng1 {[%clk 0:02:09]}  Bg4 {[%clk 0:02:03]} 14. h3 {[%clk 0:02:06]}  Bd7 {[%clk 0:01:51]} 15. Nf3 {[%clk 0:01:56]}  Qe7 {[%clk 0:01:51]} 16. Be2 {[%clk 0:01:54]}  f5 {[%clk 0:01:48]} 17. Nh5 {[%clk 0:01:50]}  Rae8 {[%clk 0:01:42]} 18. Bg5 {[%clk 0:01:29]}  Qf7 {[%clk 0:01:05]} 19. O-O {[%clk 0:01:08]}  f4 {[%clk 0:01:05]} 20. Nh4 {[%clk 0:00:20]}  Nc6 {[%clk 0:00:43]} 21. Nxg6 {[%clk 0:00:16]}  Qxg6 {[%clk 0:00:43]} 22. Bxf4 {[%clk 0:00:14]}  Nxd4 {[%clk 0:00:32]} 23. Bd1 {[%clk 0:00:11]}  Bxh3 {[%clk 0:00:32]} 24. Ng3 {[%clk 0:00:10]}  Bg4 {[%clk 0:00:32]} 25. Be3 {[%clk 0:00:09]}  c5 {[%clk 0:00:12]} 26. Bxd4 {[%clk 0:00:09]}  cxd4 {[%clk 0:00:13]} 27. Bxg4 {[%clk 0:00:09]}  Qxg4 {[%clk 0:00:14]} 28. Qd3 {[%clk 0:00:09]}  h5 {[%clk 0:00:12]} 29. Rae1 {[%clk 0:00:08]}  h4 {[%clk 0:00:11]} 30. Rxe8 {[%clk 0:00:06]}  Rxe8 {[%clk 0:00:12]} 31. Nf5 {[%clk 0:00:06]}  Re6 {[%clk 0:00:08]} 32. Qh3 {[%clk 0:00:04]}  Qxh3 {[%clk 0:00:07]} 33. gxh3 {[%clk 0:00:04]}  Re2 {[%clk 0:00:07]} 34. Rd1 {[%clk 0:00:04]}  d3 {[%clk 0:00:04]} 35. Rxd3 {[%clk 0:00:02]}  Rxf2 {[%clk 0:00:05]} 36. Ne7+ {[%clk 0:00:02]}  Kf7 {[%clk 0:00:05]} 37. Nxd5 {[%clk 0:00:03]}  Rxc2+ {[%clk 0:00:03]} 38. Nxb6 {[%clk 0:00:03]}  axb6 {[%clk 0:00:04]} 39. Rd4 {[%clk 0:00:04]} 1-0


[Site "https://www.chess.com"]

[Event "Titled Tuesday Blitz May 25 2021"]
[White "Zubov, Alexander"]
[Black "Maly, Alexey"]
[WhiteFideId "14109409"]
[BlackFideId "14103184"]
[WhiteElo "2740"]
[BlackElo "2314"]
[Result "1-0"]
[Round "05"]
[TimeControl "180+1"]
[Date "2021.05.25"]
[WhiteClock "0:00:04"]
[BlackClock "0:00:10"]

1. d4 {[%clk 0:03:00]}  d5 {[%clk 0:02:59]} 2. Nf3 {[%clk 0:02:59]}  Nf6 {[%clk 0:02:59]} 3. c4 {[%clk 0:02:59]}  dxc4 {[%clk 0:03:00]} 4. e3 {[%clk 0:02:56]}  e6 {[%clk 0:03:00]} 5. Bxc4 {[%clk 0:02:56]}  a6 {[%clk 0:03:01]} 6. Qe2 {[%clk 0:02:56]}  b5 {[%clk 0:03:01]} 7. Bd3 {[%clk 0:02:55]}  Bb7 {[%clk 0:03:02]} 8. a4 {[%clk 0:02:52]}  b4 {[%clk 0:03:02]} 9. e4 {[%clk 0:02:51]}  Nbd7 {[%clk 0:02:50]} 10. Nbd2 {[%clk 0:02:47]}  Be7 {[%clk 0:02:46]} 11. Nc4 {[%clk 0:02:44]}  c5 {[%clk 0:02:40]} 12. e5 {[%clk 0:02:26]}  Nd5 {[%clk 0:02:40]} 13. h4 {[%clk 0:02:16]}  h6 {[%clk 0:02:32]} 14. Rh3 {[%clk 0:02:01]}  Qc7 {[%clk 0:02:27]} 15. Rg3 {[%clk 0:01:58]}  g5 {[%clk 0:02:07]} 16. Bd2 {[%clk 0:01:50]}  O-O-O {[%clk 0:02:01]} 17. Rc1 {[%clk 0:01:49]}  Kb8 {[%clk 0:01:58]} 18. Kf1 {[%clk 0:01:39]}  gxh4 {[%clk 0:01:55]} 19. Rg7 {[%clk 0:01:38]}  Rdf8 {[%clk 0:01:55]} 20. a5 {[%clk 0:01:21]}  h3 {[%clk 0:01:50]} 21. gxh3 {[%clk 0:01:19]}  Rhg8 {[%clk 0:01:45]} 22. Rh7 {[%clk 0:01:17]}  Rh8 {[%clk 0:01:41]} 23. Rg7 {[%clk 0:01:13]}  Rhg8 {[%clk 0:01:41]} 24. Rh7 {[%clk 0:01:00]}  Rh8 {[%clk 0:01:41]} 25. Rxh8 {[%clk 0:01:01]}  Rxh8 {[%clk 0:01:41]} 26. Kg1 {[%clk 0:00:49]}  Rg8+ {[%clk 0:01:39]} 27. Kh2 {[%clk 0:00:49]}  f6 {[%clk 0:01:31]} 28. Rg1 {[%clk 0:00:42]}  Rxg1 {[%clk 0:01:30]} 29. Kxg1 {[%clk 0:00:43]}  cxd4 {[%clk 0:01:24]} 30. exf6 {[%clk 0:00:43]}  N5xf6 {[%clk 0:01:18]} 31. Nxd4 {[%clk 0:00:41]}  Bc5 {[%clk 0:01:17]} 32. Be3 {[%clk 0:00:35]}  Nf8 {[%clk 0:01:00]} 33. Nd2 {[%clk 0:00:18]}  Qg7+ {[%clk 0:00:53]} 34. Kf1 {[%clk 0:00:15]}  Qg2+ {[%clk 0:00:49]} 35. Ke1 {[%clk 0:00:15]}  Qxh3 {[%clk 0:00:45]} 36. N2b3 {[%clk 0:00:15]}  Bxd4 {[%clk 0:00:41]} 37. Bxd4 {[%clk 0:00:15]}  N8d7 {[%clk 0:00:39]} 38. Kd2 {[%clk 0:00:14]}  Bf3 {[%clk 0:00:35]} 39. Be5+ {[%clk 0:00:07]}  Kc8 {[%clk 0:00:23]} 40. Bxa6+ {[%clk 0:00:06]}  Kd8 {[%clk 0:00:22]} 41. Bxf6+ {[%clk 0:00:07]}  Nxf6 {[%clk 0:00:21]} 42. Qd3+ {[%clk 0:00:08]}  Ke7 {[%clk 0:00:19]} 43. Bc4 {[%clk 0:00:07]}  Qh1 {[%clk 0:00:16]} 44. Nd4 {[%clk 0:00:02]}  Ng4 {[%clk 0:00:12]} 45. Nxf3 {[%clk 0:00:02]}  Qxf3 {[%clk 0:00:12]} 46. Qxf3 {[%clk 0:00:02]}  Ne5 {[%clk 0:00:11]} 47. Qe4 {[%clk 0:00:02]}  Nxc4+ {[%clk 0:00:10]} 48. Qxc4 {[%clk 0:00:03]}  b3 {[%clk 0:00:10]} 49. Qb4+ {[%clk 0:00:04]} 1-0


[Site "https://www.chess.com"]

[Event "Titled Tuesday Blitz May 25 2021"]
[White "elcandado"]
[Black "Bortnyk, Olexandr"]
[BlackFideId "14120828"]
[WhiteElo "2642"]
[BlackElo "2723"]
[Result "0-1"]
[Round "05"]
[TimeControl "180+1"]
[Date "2021.05.25"]
[WhiteClock "0:00:13"]
[BlackClock "0:00:26"]

1. d4 {[%clk 0:03:00]}  Nf6 {[%clk 0:02:56]} 2. Bf4 {[%clk 0:03:00]}  d6 {[%clk 0:02:56]} 3. Nc3 {[%clk 0:02:59]}  Nbd7 {[%clk 0:02:54]} 4. Nf3 {[%clk 0:02:58]}  c6 {[%clk 0:02:54]} 5. a4 {[%clk 0:02:49]}  Qa5 {[%clk 0:02:52]} 6. Bd2 {[%clk 0:02:46]}  e5 {[%clk 0:02:43]} 7. e4 {[%clk 0:02:43]}  Qc7 {[%clk 0:02:30]} 8. Be2 {[%clk 0:02:21]}  a5 {[%clk 0:02:27]} 9. O-O {[%clk 0:02:20]}  Be7 {[%clk 0:02:25]} 10. h3 {[%clk 0:02:19]}  O-O {[%clk 0:02:22]} 11. Re1 {[%clk 0:02:19]}  Re8 {[%clk 0:02:14]} 12. Bc4 {[%clk 0:02:17]}  Nf8 {[%clk 0:02:10]} 13. dxe5 {[%clk 0:01:51]}  dxe5 {[%clk 0:02:11]} 14. Ng5 {[%clk 0:01:51]}  Be6 {[%clk 0:02:06]} 15. Nxe6 {[%clk 0:01:47]}  Nxe6 {[%clk 0:02:07]} 16. Bxe6 {[%clk 0:01:46]}  fxe6 {[%clk 0:02:08]} 17. Qf3 {[%clk 0:01:43]}  Rf8 {[%clk 0:02:02]} 18. Qg3 {[%clk 0:01:37]}  Rf7 {[%clk 0:02:00]} 19. Bg5 {[%clk 0:01:25]}  Raf8 {[%clk 0:01:44]} 20. Bxf6 {[%clk 0:01:12]}  Rxf6 {[%clk 0:01:45]} 21. Re2 {[%clk 0:01:10]}  Qb6 {[%clk 0:01:28]} 22. Nd1 {[%clk 0:01:08]}  Rf4 {[%clk 0:01:19]} 23. Qb3 {[%clk 0:00:52]}  Qxb3 {[%clk 0:01:10]} 24. cxb3 {[%clk 0:00:53]}  Bc5 {[%clk 0:01:10]} 25. Rc1 {[%clk 0:00:49]}  Bd4 {[%clk 0:00:57]} 26. Rcc2 {[%clk 0:00:44]}  h5 {[%clk 0:00:58]} 27. Kf1 {[%clk 0:00:41]}  g5 {[%clk 0:00:57]} 28. Ke1 {[%clk 0:00:37]}  g4 {[%clk 0:00:53]} 29. hxg4 {[%clk 0:00:34]}  Rxg4 {[%clk 0:00:51]} 30. f3 {[%clk 0:00:30]}  Rh4 {[%clk 0:00:52]} 31. Nf2 {[%clk 0:00:24]}  Rh2 {[%clk 0:00:48]} 32. Nh3 {[%clk 0:00:20]}  Rh1+ {[%clk 0:00:37]} 33. Kd2 {[%clk 0:00:20]}  Rd8 {[%clk 0:00:37]} 34. Rc4 {[%clk 0:00:14]}  Bxb2+ {[%clk 0:00:27]} 35. Kc2 {[%clk 0:00:14]}  Ba3 {[%clk 0:00:27]} 36. Rd2 {[%clk 0:00:13]}  Rc1# {[%clk 0:00:26]} 0-1


[Site "https://www.chess.com"]

[Event "Titled Tuesday Blitz May 25 2021"]
[White "Abdrlauf, Elham"]
[Black "Iskusnyh, Sergei"]
[WhiteFideId "1533533"]
[BlackFideId "4120027"]
[WhiteElo "2326"]
[BlackElo "2492"]
[Result "1-0"]
[Round "06"]
[TimeControl "180+1"]
[Date "2021.05.25"]
[WhiteClock "0:00:02"]
[BlackClock "0:00:01"]

1. e4 {[%clk 0:03:00]}  e6 {[%clk 0:02:59]} 2. d4 {[%clk 0:03:00]}  d5 {[%clk 0:03:00]} 3. Nc3 {[%clk 0:03:01]}  Nf6 {[%clk 0:02:59]} 4. Bg5 {[%clk 0:03:01]}  dxe4 {[%clk 0:02:59]} 5. Nxe4 {[%clk 0:03:02]}  Nbd7 {[%clk 0:02:59]} 6. Nf3 {[%clk 0:02:59]}  h6 {[%clk 0:02:59]} 7. Nxf6+ {[%clk 0:02:53]}  Nxf6 {[%clk 0:03:00]} 8. Be3 {[%clk 0:02:54]}  Bd6 {[%clk 0:02:58]} 9. Bd3 {[%clk 0:02:54]}  b6 {[%clk 0:02:55]} 10. Ne5 {[%clk 0:02:33]}  O-O {[%clk 0:02:51]} 11. Qf3 {[%clk 0:02:10]}  Nd5 {[%clk 0:02:22]} 12. c4 {[%clk 0:01:52]}  Bxe5 {[%clk 0:01:54]} 13. dxe5 {[%clk 0:01:01]}  Nxe3 {[%clk 0:01:49]} 14. Qxe3 {[%clk 0:01:01]}  Bb7 {[%clk 0:01:46]} 15. O-O-O {[%clk 0:01:00]}  Qe7 {[%clk 0:01:28]} 16. Rhg1 {[%clk 0:01:00]}  Rad8 {[%clk 0:01:19]} 17. Bc2 {[%clk 0:00:34]}  Qh4 {[%clk 0:01:04]} 18. g4 {[%clk 0:00:06]}  Rxd1+ {[%clk 0:00:54]} 19. Rxd1 {[%clk 0:00:07]}  Qxg4 {[%clk 0:00:42]} 20. b3 {[%clk 0:00:06]}  Bc6 {[%clk 0:00:39]} 21. Rd4 {[%clk 0:00:04]}  Qg5 {[%clk 0:00:23]} 22. f4 {[%clk 0:00:02]}  Qg2 {[%clk 0:00:21]} 23. Kb2 {[%clk 0:00:03]}  a5 {[%clk 0:00:19]} 24. Kc3 {[%clk 0:00:02]}  g6 {[%clk 0:00:19]} 25. Rd2 {[%clk 0:00:02]}  Qh1 {[%clk 0:00:17]} 26. h3 {[%clk 0:00:02]}  Qa1+ {[%clk 0:00:16]} 27. Kd3 {[%clk 0:00:02]}  Rd8+ {[%clk 0:00:15]} 28. Ke2 {[%clk 0:00:03]}  Rxd2+ {[%clk 0:00:16]} 29. Qxd2 {[%clk 0:00:03]}  Kg7 {[%clk 0:00:16]} 30. Qd8 {[%clk 0:00:03]}  Qh1 {[%clk 0:00:13]} 31. Qf6+ {[%clk 0:00:02]}  Kg8 {[%clk 0:00:13]} 32. Qd8+ {[%clk 0:00:02]}  Kh7 {[%clk 0:00:13]} 33. Qxc7 {[%clk 0:00:03]}  Qf3+ {[%clk 0:00:12]} 34. Kd2 {[%clk 0:00:03]}  Qxf4+ {[%clk 0:00:12]} 35. Kc3 {[%clk 0:00:02]}  Qe3+ {[%clk 0:00:10]} 36. Kb2 {[%clk 0:00:03]}  Qd4+ {[%clk 0:00:10]} 37. Kb1 {[%clk 0:00:03]}  Qg1+ {[%clk 0:00:10]} 38. Kb2 {[%clk 0:00:03]}  Qd4+ {[%clk 0:00:10]} 39. Kb1 {[%clk 0:00:03]}  Qd7 {[%clk 0:00:08]} 40. Qxb6 {[%clk 0:00:03]}  Kg7 {[%clk 0:00:08]} 41. Qxa5 {[%clk 0:00:03]}  g5 {[%clk 0:00:08]} 42. Qc3 {[%clk 0:00:02]}  h5 {[%clk 0:00:03]} 43. b4 {[%clk 0:00:02]}  g4 {[%clk 0:00:02]} 44. hxg4 {[%clk 0:00:03]}  hxg4 {[%clk 0:00:03]} 45. b5 {[%clk 0:00:04]}  Bb7 {[%clk 0:00:02]} 46. Qg3 {[%clk 0:00:03]}  Qd4 {[%clk 0:00:02]} 47. Qh4 {[%clk 0:00:02]}  Qg1+ {[%clk 0:00:02]} 48. Kb2 {[%clk 0:00:02]}  Qd4+ {[%clk 0:00:02]} 49. Kb3 {[%clk 0:00:03]}  Qe3+ {[%clk 0:00:02]} 50. Ka4 {[%clk 0:00:03]}  Qa7+ {[%clk 0:00:01]} 51. Kb4 {[%clk 0:00:02]} 1-0


[Site "https://www.chess.com"]

[Event "Titled Tuesday Blitz May 25 2021"]
[White "AldokhinIvan"]
[Black "Trimitzios, Petros"]
[BlackFideId "25808796"]
[WhiteElo "2522"]
[BlackElo "2049"]
[Result "1-0"]
[Round "06"]
[TimeControl "180+1"]
[Date "2021.05.25"]
[WhiteClock "0:00:08"]
[BlackClock "0:00:01"]

1. e4 {[%clk 0:03:00]}  e5 {[%clk 0:02:54]} 2. Nf3 {[%clk 0:03:00]}  Nf6 {[%clk 0:02:54]} 3. d4 {[%clk 0:02:58]}  Nxe4 {[%clk 0:02:49]} 4. Bd3 {[%clk 0:02:58]}  d5 {[%clk 0:02:47]} 5. Nxe5 {[%clk 0:02:59]}  Bd6 {[%clk 0:02:42]} 6. Nd2 {[%clk 0:02:53]}  Nxd2 {[%clk 0:02:34]} 7. Bxd2 {[%clk 0:02:53]}  O-O {[%clk 0:02:34]} 8. O-O {[%clk 0:02:52]}  Nd7 {[%clk 0:02:30]} 9. Nxd7 {[%clk 0:02:48]}  Qxd7 {[%clk 0:02:28]} 10. Qh5 {[%clk 0:02:40]}  g6 {[%clk 0:02:27]} 11. Qh6 {[%clk 0:02:25]}  c6 {[%clk 0:02:25]} 12. Rae1 {[%clk 0:02:18]}  f6 {[%clk 0:02:17]} 13. Bf4 {[%clk 0:02:10]}  Bxf4 {[%clk 0:01:58]} 14. Qxf4 {[%clk 0:02:09]}  Qg4 {[%clk 0:01:57]} 15. Qc7 {[%clk 0:02:00]}  Rf7 {[%clk 0:01:47]} 16. Re8+ {[%clk 0:01:23]}  Kg7 {[%clk 0:01:44]} 17. Re7 {[%clk 0:01:23]}  Bd7 {[%clk 0:01:28]} 18. h3 {[%clk 0:01:12]}  Qxg2+ {[%clk 0:01:05]} 19. Kxg2 {[%clk 0:01:08]}  Rxe7 {[%clk 0:01:06]} 20. Qd6 {[%clk 0:01:07]}  Rae8 {[%clk 0:01:05]} 21. h4 {[%clk 0:01:04]}  Bg4 {[%clk 0:01:03]} 22. Kg3 {[%clk 0:01:00]}  Bh5 {[%clk 0:00:56]} 23. a4 {[%clk 0:00:48]}  Re6 {[%clk 0:00:54]} 24. Qc7+ {[%clk 0:00:42]}  R8e7 {[%clk 0:00:54]} 25. Qf4 {[%clk 0:00:37]}  a6 {[%clk 0:00:49]} 26. a5 {[%clk 0:00:37]}  h6 {[%clk 0:00:43]} 27. f3 {[%clk 0:00:26]}  Re3 {[%clk 0:00:41]} 28. Rf2 {[%clk 0:00:21]}  R3e6 {[%clk 0:00:28]} 29. Qb8 {[%clk 0:00:18]}  f5 {[%clk 0:00:23]} 30. Qf4 {[%clk 0:00:16]}  Kh7 {[%clk 0:00:22]} 31. Qd2 {[%clk 0:00:16]}  Re3 {[%clk 0:00:19]} 32. Kf4 {[%clk 0:00:15]}  Kg7 {[%clk 0:00:14]} 33. Qxe3 {[%clk 0:00:09]}  g5+ {[%clk 0:00:14]} 34. hxg5 {[%clk 0:00:09]}  hxg5+ {[%clk 0:00:15]} 35. Kxg5 {[%clk 0:00:10]}  Rxe3 {[%clk 0:00:16]} 36. Kxh5 {[%clk 0:00:10]}  Kf6 {[%clk 0:00:16]} 37. Kh4 {[%clk 0:00:09]}  Re8 {[%clk 0:00:12]} 38. Kg3 {[%clk 0:00:08]}  Rg8+ {[%clk 0:00:12]} 39. Kf4 {[%clk 0:00:08]}  Rh8 {[%clk 0:00:10]} 40. Rg2 {[%clk 0:00:08]}  Rh4+ {[%clk 0:00:09]} 41. Ke3 {[%clk 0:00:08]}  f4+ {[%clk 0:00:08]} 42. Kd2 {[%clk 0:00:08]}  Rh3 {[%clk 0:00:08]} 43. Ke2 {[%clk 0:00:08]}  Rh1 {[%clk 0:00:07]} 44. Rg6+ {[%clk 0:00:08]}  Kf7 {[%clk 0:00:07]} 45. Rg4 {[%clk 0:00:09]}  Rh2+ {[%clk 0:00:07]} 46. Kd1 {[%clk 0:00:09]}  Rh1+ {[%clk 0:00:04]} 47. Kd2 {[%clk 0:00:10]}  Ra1 {[%clk 0:00:05]} 48. Rxf4+ {[%clk 0:00:09]}  Ke7 {[%clk 0:00:05]} 49. b4 {[%clk 0:00:10]}  Ra4 {[%clk 0:00:04]} 50. Kc3 {[%clk 0:00:10]}  Ra1 {[%clk 0:00:04]} 51. Rh4 {[%clk 0:00:09]}  Kd6 {[%clk 0:00:02]} 52. Rh7 {[%clk 0:00:09]}  Rh1 {[%clk 0:00:01]} 53. Bf5 {[%clk 0:00:08]} 1-0


[Site "https://www.chess.com"]